bitfinex/quotes_SOLUSD_20250219
["timestamp","ask_amount","ask_price","bid_price","bid_amount"]
[1739951791267,17.84512573,169.75,169.72,0.03]
[1739951791837,11.95412573,169.74,169.72,0.03]
[1739951792250,25.36597426,169.73,169.72,0.03]
[1739951793857,31.25767426,169.73,169.72,0.03]
[1739951795350,31.25767426,169.73,169.71,0.063]
[1739951795556,25.36597426,169.72,169.71,0.063]
[1739951795758,31.25797426,169.72,169.71,0.063]
[1739951796859,17.84612573,169.72,169.71,0.063]
[1739951799078,100.54612573,169.72,169.71,0.063]
[1739951799950,94.65412573,169.72,169.71,0.063]
[1739951800275,82.7,169.72,169.71,0.063]
[1739951803580,96.24580875,169.72,169.71,0.063]
[1739951805057,109.65765728,169.72,169.71,0.063]
[1739951806182,110.65765728,169.72,169.71,0.063]
[1739951806386,109.65765728,169.72,169.71,0.063]
[1739951806960,110.65765728,169.72,169.71,0.063]
[1739951807369,13.41184853,169.71,169.7,0.063]
[1739951807571,21.06565728,169.71,169.7,0.063]
[1739951808581,26.95805728,169.71,169.7,0.063]
[1739951808885,27.95805728,169.71,169.7,0.063]
[1739951809965,26.95805728,169.71,169.7,0.063]
[1739951810391,27.95805728,169.71,169.7,0.063]
[1739951810768,26.95805728,169.71,169.7,0.063]
[1739951811480,27.95805728,169.71,169.7,0.063]
[1739951812380,26.95805728,169.71,169.7,0.063]
[1739951812992,29.84387441,169.71,169.7,0.063]
[1739951813796,33.41184853,169.68,169.67,0.063]
[1739951814104,13.41184853,169.65,169.63,0.063]
[1739951814268,21.06565728,169.64,169.63,0.063]
[1739951814587,26.96045728,169.64,169.63,0.063]
[1739951816492,13.54860875,169.64,169.63,0.063]
[1739951816677,7.65380875,169.64,169.63,0.063]
[1739951816993,13.54860875,169.64,169.63,0.063]
[1739951817897,20.0,169.6,169.58,0.03]
[1739951818192,21.06565728,169.59,169.58,0.03]
[1739951818565,7.65380875,169.59,169.58,0.03]
[1739951818769,13.55010875,169.6,169.58,0.03]
[1739951819897,7.65380875,169.6,169.58,0.03]
[1739951820101,20.0,169.6,169.58,0.03]
[1739951820283,13.54930875,169.62,169.58,0.03]
[1739951820470,7.65380875,169.61,169.58,0.03]
[1739951821366,13.54970875,169.61,169.58,0.03]
[1739951822184,7.65380875,169.61,169.58,0.03]
[1739951822890,20.0,169.62,169.58,0.03]
[1739951823187,20.0,169.62,169.59,7.9025]
[1739951823495,27.65380875,169.62,169.59,7.9025]
[1739951823698,33.54940875,169.62,169.59,7.9025]
[1739951823872,96.24900875,169.63,169.59,7.9025]
[1739951824196,90.35380875,169.63,169.59,7.9025]
[1739951824579,13.54860875,169.64,169.59,7.9025]
[1739951825589,7.65380875,169.63,169.59,7.9025]
[1739951826500,7.65380875,169.61,169.59,7.9025]
[1739951827501,5.8962,169.6,169.59,7.9025]
[1739951827693,7.65380875,169.61,169.59,7.9025]
[1739951827873,96.24960875,169.62,169.59,7.9025]
[1739951828981,90.35380875,169.61,169.58,0.03]
[1739951829191,7.65380875,169.6,169.58,0.03]
[1739951829388,27.65380875,169.59,169.58,0.03]
[1739951829606,33.55030875,169.59,169.58,0.03]
[1739951831285,82.7,169.6,169.58,0.03]
[1739951831487,13.54920875,169.63,169.58,0.03]
[1739951831685,96.24920875,169.63,169.58,0.03]
[1739951831897,90.35380875,169.63,169.58,7.68380875]
[1739951832712,82.7,169.65,169.6,7.65380875]
[1739951832912,82.7,169.65,169.61,7.65380875]
[1739951833123,82.7,169.65,169.61,13.85710875]
[1739951833623,82.7,169.65,169.61,6.2033]
[1739951834715,0.063,169.63,169.62,7.65380875]
[1739951836126,0.063,169.63,169.62,13.54930875]
[1739951837198,0.063,169.63,169.62,7.65380875]
[1739951837895,0.063,169.63,169.61,100.65290875]
[1739951838097,0.063,169.63,169.61,87.1033]
[1739951838928,0.063,169.63,169.61,100.65290875]
[1739951839111,0.063,169.63,169.62,7.65380875]
[1739951840022,0.063,169.63,169.61,94.75710875]
[1739951840396,0.063,169.63,169.61,13.85710875]
[1739951840725,7.71680875,169.63,169.59,1.6179]
[1739951840926,7.65380875,169.61,169.58,0.03]
[1739951841130,7.65380875,169.62,169.58,0.03]
[1739951841797,7.71680875,169.63,169.58,0.03]
[1739951841993,7.71680875,169.63,169.58,7.68380875]
[1739951842229,0.063,169.63,169.58,7.68380875]
[1739951842425,0.063,169.63,169.59,7.65380875]
[1739951842802,0.063,169.63,169.58,7.68380875]
[1739951843801,7.71680875,169.63,169.58,7.68380875]
[1739951844434,7.65380875,169.62,169.58,0.03]
[1739951844619,7.65380875,169.61,169.58,0.03]
[1739951844802,7.65380875,169.6,169.58,0.03]
[1739951845317,103.76565728,169.59,169.58,0.03]
[1739951846328,109.66215728,169.59,169.58,0.03]
[1739951846636,113.98930929,169.59,169.58,0.03]
[1739951850838,94.68096076,169.59,169.58,0.03]
[1739951851006,82.7,169.59,169.58,0.03]
[1739951852539,100.57746076,169.59,169.58,0.03]
[1739951853741,88.5965,169.59,169.58,0.03]
[1739951854032,113.98930929,169.59,169.58,0.03]
[1739951854234,20.0,169.56,169.55,0.03]
[1739951854420,45.39280929,169.56,169.55,0.03]
[1739951855439,57.37377005,169.56,169.55,0.03]
[1739951855611,45.39280929,169.56,169.55,0.03]
[1739951855808,51.29040929,169.56,169.55,0.03]
[1739951856826,20.0,169.56,169.55,0.03]
[1739951857349,31.29040929,169.56,169.55,0.03]
[1739951866741,26.98182718,169.56,169.55,0.03]
[1739951871033,13.41184853,169.55,169.54,0.03]
[1739951871258,103.78422718,169.55,169.54,0.03]
[1739951871446,21.08422718,169.55,169.53,0.03]
[1739951871757,21.08422718,169.54,169.53,0.03]
[1739951872654,26.98252718,169.54,169.53,0.03]
[1739951872825,26.98252718,169.54,169.5,0.063]
[1739951872826,20.0,169.51,169.5,0.063]
[1739951873032,27.67237865,169.51,169.5,0.063]
[1739951873233,41.08422718,169.51,169.5,0.063]
[1739951873755,43.38844764,169.51,169.5,0.063]
[1739951874555,49.28774764,169.51,169.5,0.063]
[1739951874742,46.98352718,169.51,169.5,0.063]
[1739951876641,26.98352718,169.51,169.5,0.063]
[1739951877158,7.67237865,169.51,169.5,0.063]
[1739951879046,13.57167865,169.51,169.5,0.063]
[1739951879542,96.11184853,169.54,169.5,0.063]
[1739951879748,7.67237865,169.51,169.5,0.063]
[1739951880768,13.57167865,169.51,169.5,0.063]
[1739951882264,7.67237865,169.51,169.5,0.063]
[1739951882460,82.7,169.53,169.5,0.063]
[1739951882461,88.5987,169.53,169.5,0.063]
[1739951882664,82.7,169.53,169.51,7.67237865]
[1739951882865,82.7,169.53,169.5,9.25007865]
[1739951883742,82.7,169.53,169.5,1.5777]
[1739951884142,0.063,169.58,169.51,6.1244]
[1739951884342,5.8972,169.57,169.52,7.67237865]
[1739951884551,5.8972,169.57,169.51,6.1244]
[1739951884552,5.9599,169.58,169.53,7.67237865]
[1739951884753,13.63227865,169.58,169.52,7.67237865]
[1739951885875,7.67237865,169.56,169.51,6.1244]
[1739951886564,7.67237865,169.54,169.51,6.1244]
[1739951886757,7.67237865,169.53,169.51,6.1244]
[1739951887365,7.67237865,169.54,169.51,6.1244]
[1739951887563,96.11184853,169.55,169.51,6.1244]
[1739951887564,103.78422718,169.55,169.51,6.1244]
[1739951887769,82.7,169.55,169.51,13.79677865]
[1739951888460,82.7,169.55,169.51,19.69607865]
[1739951890168,82.7,169.55,169.51,13.79677865]
[1739951890365,96.27037865,169.55,169.51,6.1244]
[1739951890552,7.67237865,169.54,169.51,6.1244]
[1739951893377,13.57077865,169.54,169.51,6.1244]
[1739951893952,7.67237865,169.53,169.51,6.1244]
[1739951894676,13.57107865,169.53,169.5,0.063]
[1739951895264,7.67237865,169.52,169.5,0.063]
[1739951895888,21.08422718,169.51,169.5,0.063]
[1739951896774,26.98352718,169.51,169.5,0.063]
[1739951897551,7.67237865,169.51,169.5,0.063]
[1739951898272,26.98352718,169.51,169.5,0.063]
[1739951900373,13.41184853,169.47,169.43,6.2351]
[1739951900563,7.67237865,169.46,169.43,6.2351]
[1739951900882,7.67237865,169.45,169.43,6.2351]
[1739951901390,7.67237865,169.45,169.43,0.063]
[1739951902181,13.57357865,169.46,169.43,0.063]
[1739951902767,21.08422718,169.47,169.43,0.063]
[1739951903211,26.98512718,169.47,169.43,0.063]
[1739951903384,27.67237865,169.48,169.43,0.063]
[1739951903753,27.67237865,169.48,169.43,7.73537865]
[1739951903958,7.67237865,169.51,169.45,7.67237865]
[1739951904379,7.67237865,169.49,169.44,7.67237865]
[1739951904764,7.67237865,169.5,169.45,6.1771]
[1739951904964,7.67237865,169.51,169.46,7.67237865]
[1739951905183,13.57177865,169.51,169.46,7.67237865]
[1739951905394,13.57177865,169.51,169.45,13.84947865]
[1739951906596,13.57177865,169.51,169.45,6.1771]
[1739951906889,7.67237865,169.5,169.45,13.84947865]
[1739951907105,13.57207865,169.5,169.45,13.84947865]
[1739951907501,7.67237865,169.5,169.45,13.84947865]
[1739951907724,7.67237865,169.5,169.45,19.75077865]
[1739951908024,13.57207865,169.5,169.45,13.84947865]
[1739951908574,21.08422718,169.49,169.45,6.1771]
[1739951908808,21.08422718,169.48,169.45,6.1771]
[1739951909020,26.98482718,169.48,169.45,6.1771]
[1739951909714,26.98482718,169.48,169.43,0.063]
[1739951910014,7.67237865,169.47,169.43,0.063]
[1739951911185,21.08422718,169.48,169.43,0.063]
[1739951911900,7.67237865,169.49,169.43,7.73537865]
[1739951912693,88.5997,169.5,169.45,7.67237865]
[1739951913713,96.27207865,169.5,169.44,13.57387865]
[1739951914533,90.37237865,169.5,169.44,13.57387865]
[1739951915608,90.37237865,169.52,169.46,7.67237865]
[1739951915817,96.27137865,169.52,169.46,7.67237865]
[1739951916225,7.67237865,169.51,169.45,7.67237865]
[1739951916717,7.67237865,169.5,169.44,94.47387865]
[1739951916916,7.67237865,169.5,169.44,88.57237865]
[1739951918327,7.67237865,169.5,169.44,94.47407865]
[1739951919029,7.67237865,169.51,169.45,7.67237865]
[1739951919923,0.063,169.5,169.45,7.67237865]
[1739951921723,0.063,169.5,169.45,13.57367865]
[1739951922329,7.67237865,169.49,169.44,80.9]
[1739951922508,7.67237865,169.49,169.43,7.73537865]
[1739951922709,7.67237865,169.48,169.43,0.063]
[1739951922925,7.67237865,169.47,169.43,0.063]
[1739951923799,13.57287865,169.48,169.43,0.063]
[1739951924813,7.67237865,169.48,169.43,0.063]
[1739951925401,13.57267865,169.49,169.43,0.063]
[1739951925606,7.67237865,169.48,169.43,0.063]
[1739951926321,13.57267865,169.49,169.43,13.63747865]
[1739951928113,19.31244853,169.48,169.43,7.73537865]
[1739951928318,26.98482718,169.48,169.43,0.063]
[1739951929338,7.67237865,169.48,169.43,0.063]
[1739951929646,7.67237865,169.48,169.43,5.9651]
[1739951929943,13.57277865,169.48,169.43,0.063]
[1739951930647,7.67237865,169.47,169.43,0.063]
[1739951931548,7.67237865,169.46,169.43,0.063]
[1739951933036,13.57357865,169.46,169.43,0.063]
[1739951934318,5.9012,169.46,169.43,0.063]
[1739951934926,21.08422718,169.47,169.43,0.063]
[1739951935328,26.98492718,169.47,169.43,0.063]
[1739951935936,82.7,169.49,169.44,7.67237865]
[1739951936143,82.7,169.49,169.45,7.67237865]
[1739951936347,82.7,169.49,169.46,7.67237865]
[1739951936821,0.063,169.5,169.46,7.67237865]
[1739951937025,0.063,169.5,169.45,7.67237865]
[1739951938222,0.063,169.5,169.46,7.67237865]
[1739951938819,0.063,169.5,169.47,7.67237865]
[1739951939324,0.063,169.5,169.47,13.92467865]
[1739951939640,0.063,169.5,169.49,9.27207865]
[1739951940223,0.063,169.5,169.49,15.17207865]
[1739951943259,0.063,169.5,169.49,1.5997]
[1739951943454,0.063,169.5,169.47,87.1523]
[1739951944029,0.063,169.5,169.47,6.2523]
[1739951944234,7.67237865,169.48,169.43,94.79877865]
[1739951944421,7.67237865,169.48,169.43,91.5664]
[1739951946349,7.67237865,169.48,169.43,99.23877865]
[1739951946544,13.57277865,169.48,169.43,99.23877865]
[1739951946748,13.57277865,169.48,169.43,87.1264]
[1739951947761,7.67237865,169.47,169.43,87.1264]
[1739951948135,7.67237865,169.45,169.43,0.063]
[1739951950966,7.67237865,169.44,169.43,0.063]
[1739951953483,7.67237865,169.45,169.43,0.063]
[1739951955472,13.57377865,169.45,169.43,0.063]
[1739951958293,26.98592718,169.44,169.43,0.063]
[1739951960563,21.08422718,169.44,169.43,0.063]
[1739951963786,7.67237865,169.45,169.43,0.063]
[1739951965080,82.7,169.46,169.43,0.063]
[1739951965288,7.67237865,169.48,169.43,7.73537865]
[1739951966450,13.57277865,169.48,169.43,7.73537865]
[1739951966655,13.57277865,169.48,169.43,0.063]
[1739951967181,7.67237865,169.45,169.43,0.063]
[1739951968687,7.67237865,169.44,169.43,0.063]
[1739951968860,21.08422718,169.44,169.43,0.063]
[1739951969986,7.67237865,169.44,169.43,0.063]
[1739951976891,13.57407865,169.44,169.43,0.063]
[1739951977677,7.67237865,169.44,169.43,0.063]
[1739951977877,13.57407865,169.44,169.43,0.063]
[1739951978591,7.67237865,169.44,169.43,0.063]
[1739951979389,13.41184853,169.45,169.43,0.063]
[1739951979586,26.98572718,169.45,169.43,0.063]
[1739951983305,7.67237865,169.44,169.43,0.063]
[1739951983481,21.08422718,169.44,169.43,0.063]
[1739951984771,26.98592718,169.44,169.43,0.063]
[1739951985893,20.0,169.41,169.4,0.06959889]
[1739951986098,41.08422718,169.41,169.4,0.00959889]
[1739951986275,21.08422718,169.41,169.4,0.00959889]
[1739951986889,7.67237865,169.41,169.4,0.00959889]
[1739951987080,13.57457865,169.43,169.4,0.00959889]
[1739951988005,7.67237865,169.42,169.4,0.00959889]
[1739951988341,13.57507865,169.42,169.4,0.00959889]
[1739951988491,13.41184853,169.43,169.4,0.00959889]
[1739951988693,26.98632718,169.43,169.4,0.00959889]
[1739951990093,13.57507865,169.42,169.4,0.00959889]
[1739951991514,5.9027,169.42,169.4,0.03959889]
[1739951991700,27.04932718,169.43,169.4,0.03959889]
[1739951992013,109.74932718,169.43,169.4,0.03959889]
[1739951992514,102.07694853,169.43,169.4,0.03959889]
[1739951993211,109.74932718,169.43,169.4,0.03959889]
[1739951993710,7.67237865,169.41,169.4,0.03959889]
[1739951993883,34.41184853,169.39,169.38,0.0001]
[1739951994209,13.41184853,169.35,169.27,15.44139703]
[1739951994511,7.67237865,169.33,169.27,15.44139703]
[1739951994690,7.67237865,169.33,169.27,23.11377568]
[1739951994894,7.67237865,169.33,169.27,29.02137568]
[1739951995308,13.57797865,169.34,169.28,7.67237865]
[1739951996187,7.67237865,169.33,169.27,20.06317865]
[1739951996516,13.41184853,169.3,169.27,6.4832]
[1739951996685,21.08422718,169.3,169.27,6.4832]
[1739951998112,5.9063,169.31,169.27,6.4832]
[1739951998113,7.67237865,169.31,169.27,6.4832]
[1739951999488,7.67237865,169.3,169.26,0.03]
[1739951999702,14.7638,169.34,169.26,0.03]
[1739951999703,7.67237865,169.32,169.26,0.03]
[1739952000217,13.41184853,169.3,169.26,0.03]
[1739952000412,21.08422718,169.3,169.26,0.03]
[1739952001417,7.67237865,169.29,169.26,0.03]
[1739952001716,21.08422718,169.3,169.26,0.03]
[1739952002816,13.41184853,169.3,169.26,0.03]
[1739952003389,90.37237865,169.31,169.26,0.03]
[1739952005220,82.7,169.31,169.26,0.03]
[1739952006416,82.7,169.31,169.27,7.67237865]
[1739952006620,7.67237865,169.36,169.3,7.67237865]
[1739952006921,90.37237865,169.39,169.33,7.67237865]
[1739952007129,7.67237865,169.4,169.34,7.67237865]
[1739952007818,7.67237865,169.41,169.35,7.67237865]
[1739952008012,13.41184853,169.4,169.35,7.67237865]
[1739952008414,21.08422718,169.4,169.34,7.67237865]
[1739952008595,7.67237865,169.4,169.34,7.67237865]
[1739952008794,21.08422718,169.41,169.35,7.67237865]
[1739952009424,7.67237865,169.42,169.36,7.67237865]
[1739952009733,7.67237865,169.42,169.36,15.96727865]
[1739952010999,7.67237865,169.41,169.36,8.2949]
[1739952011693,7.67237865,169.42,169.36,21.87167865]
[1739952011891,21.14722718,169.43,169.37,7.67237865]
[1739952012128,0.063,169.43,169.38,7.67237865]
[1739952012324,0.063,169.43,169.4,7.67237865]
[1739952013195,0.063,169.43,169.4,13.57537865]
[1739952013390,0.063,169.43,169.41,7.67237865]
[1739952013617,0.063,169.43,169.38,85.34]
[1739952013923,0.063,169.43,169.4,7.67237865]
[1739952014994,0.063,169.43,169.41,13.57517865]
[1739952015697,0.063,169.43,169.42,7.67237865]
[1739952015928,0.063,169.43,169.42,88.5924]
[1739952016093,0.063,169.43,169.42,96.26477865]
[1739952016993,0.063,169.43,169.42,102.16717865]
[1739952017820,0.063,169.43,169.42,80.9]
[1739952018214,0.063,169.43,169.42,86.8024]
[1739952019041,0.0001,169.43,169.42,100.79825571]
[1739952019239,0.063,169.5,169.45,20.0]
[1739952019533,0.063,169.5,169.46,16.43585981]
[1739952019750,13.41184853,169.49,169.45,80.9]
[1739952019950,11.99585981,169.46,169.42,18.2297]
[1739952020322,11.99585981,169.46,169.42,12.3273]
[1739952020521,96.11184853,169.49,169.39,80.9]
[1739952020522,11.99585981,169.43,169.39,80.9]
[1739952020748,11.99585981,169.41,169.38,7.7068]
[1739952020945,11.99585981,169.4,169.36,80.9]
[1739952021246,11.99585981,169.4,169.36,5.9045]
[1739952021446,11.99585981,169.37,169.32,80.9]
[1739952021648,11.99585981,169.36,169.31,10.3662]
[1739952022724,11.99585981,169.37,169.31,10.3662]
[1739952023125,94.69585981,169.4,169.34,11.99585981]
[1739952024022,11.99585981,169.38,169.32,11.99585981]
[1739952024256,82.7,169.4,169.35,11.99585981]
[1739952025143,82.7,169.4,169.36,5.9045]
[1739952025719,82.7,169.4,169.36,17.90035981]
[1739952026052,82.7,169.4,169.36,5.9045]
[1739952026358,11.99585981,169.38,169.35,5.9049]
[1739952027238,11.99585981,169.38,169.34,25.9052]
[1739952028255,11.99585981,169.37,169.32,11.99585981]
[1739952028427,11.99585981,169.36,169.31,103.26185981]
[1739952028755,11.99585981,169.33,169.29,5.9069]
[1739952029328,11.99585981,169.32,169.28,80.9]
[1739952029631,11.99585981,169.31,169.27,5.9076]
[1739952030139,11.99585981,169.31,169.26,80.93]
[1739952030140,11.99585981,169.28,169.26,0.03]
[1739952030950,11.99585981,169.27,169.26,0.03]
[1739952031466,25.40770834,169.27,169.26,0.03]
[1739952031641,31.31540834,169.27,169.26,0.03]
[1739952031838,25.40770834,169.27,169.26,0.03]
[1739952032032,31.31540834,169.27,169.26,0.03]
[1739952033263,31.31540834,169.27,169.23,0.03]
[1739952033264,20.0,169.24,169.23,0.03]
[1739952033439,33.41184853,169.24,169.23,0.03]
[1739952033764,45.40770834,169.24,169.23,0.03]
[1739952035760,51.31640834,169.24,169.23,0.03]
[1739952035964,45.40770834,169.24,169.23,0.03]
[1739952036327,51.31640834,169.24,169.23,0.03]
[1739952037471,51.29146381,169.24,169.23,0.03]
[1739952038144,45.38276381,169.24,169.23,0.03]
[1739952039766,11.99585981,169.24,169.23,0.03]
[1739952039969,5.9059,169.32,169.23,12.02585981]
[1739952040265,11.99585981,169.31,169.25,11.99585981]
[1739952040484,11.99585981,169.32,169.26,11.99585981]
[1739952040766,11.99585981,169.34,169.28,11.99585981]
[1739952040947,23.02835981,169.38,169.3,11.99585981]
[1739952040948,11.99585981,169.36,169.3,11.99585981]
[1739952041543,25.40770834,169.35,169.29,11.99585981]
[1739952041747,94.69585981,169.37,169.31,11.99585981]
[1739952042459,13.41184853,169.38,169.32,11.99585981]
[1739952042460,11.99585981,169.38,169.32,11.99585981]
[1739952043469,11.99585981,169.38,169.33,5.9056]
[1739952043673,25.40770834,169.4,169.34,11.99585981]
[1739952043966,11.99585981,169.4,169.34,11.99585981]
[1739952044137,25.40770834,169.4,169.34,11.99585981]
[1739952044740,25.40770834,169.4,169.33,86.8056]
[1739952044741,11.99585981,169.37,169.33,80.9]
[1739952045070,11.99585981,169.36,169.33,80.9]
[1739952045265,11.99585981,169.35,169.31,6.0924]
[1739952045563,82.7,169.38,169.31,6.0924]
[1739952045564,11.99585981,169.36,169.31,6.0924]
[1739952045769,94.69585981,169.38,169.32,11.99585981]
[1739952046136,11.99585981,169.37,169.32,11.99585981]
[1739952046569,25.40770834,169.36,169.31,6.0924]
[1739952046733,25.40770834,169.36,169.3,22.40245981]
[1739952046941,25.40770834,169.36,169.3,4.5]
[1739952046942,11.99585981,169.34,169.3,4.5]
[1739952047162,25.40770834,169.33,169.3,4.5]
[1739952047740,13.41184853,169.33,169.3,4.5]
[1739952047968,11.99585981,169.34,169.3,10.4066]
[1739952048175,11.99585981,169.34,169.3,4.5]
[1739952048770,13.41184853,169.34,169.3,10.4066]
[1739952049474,25.40770834,169.34,169.3,4.5]
[1739952049937,25.40770834,169.34,169.28,11.99585981]
[1739952050141,25.40770834,169.34,169.28,17.90315981]
[1739952050546,94.69585981,169.35,169.28,5.9073]
[1739952050752,94.69585981,169.35,169.29,11.99585981]
[1739952050969,94.69585981,169.35,169.28,17.90315981]
[1739952051346,82.7,169.35,169.31,11.99585981]
[1739952051769,11.99585981,169.38,169.31,11.99585981]
[1739952051947,82.7,169.42,169.36,11.99585981]
[1739952051948,94.69585981,169.42,169.36,11.99585981]
[1739952052148,0.063,169.44,169.39,11.99585981]
[1739952052348,0.063,169.44,169.4,11.99585981]
[1739952053149,0.063,169.44,169.4,5.9031]
[1739952053969,0.063,169.44,169.4,17.89895981]
[1739952054554,0.063,169.44,169.4,25.0980224]
[1739952055273,0.063,169.44,169.4,5.9031]
[1739952055948,19.2579224,169.44,169.38,29.9163224]
[1739952056150,19.2579224,169.44,169.38,35.8199224]
[1739952057573,0.063,169.44,169.39,19.1949224]
[1739952058166,0.063,169.44,169.38,16.625]
[1739952058167,0.063,169.44,169.4,19.1949224]
[1739952059373,0.063,169.44,169.41,25.0977224]
[1739952059576,0.063,169.44,169.42,19.1949224]
[1739952061564,0.063,169.44,169.42,25.0973224]
[1739952062655,0.063,169.44,169.42,5.9024]
[1739952063355,0.063,169.44,169.42,25.0973224]
[1739952063770,0.063,169.44,169.42,105.9973224]
[1739952064079,0.063,169.44,169.42,80.9]
[1739952064381,19.2579224,169.43,169.37,10.4042]
[1739952064578,19.1949224,169.41,169.35,86.8048]
[1739952064760,19.1949224,169.37,169.33,80.9]
[1739952064969,19.1949224,169.36,169.32,5.9059]
[1739952065371,19.1949224,169.36,169.31,12.0166]
[1739952065686,19.1949224,169.36,169.31,10.4062]
[1739952066254,19.1949224,169.38,169.32,19.1949224]
[1739952066454,82.7,169.39,169.34,19.1949224]
[1739952067258,82.7,169.39,169.35,19.1949224]
[1739952067462,19.1949224,169.42,169.36,19.1949224]
[1739952067658,101.9579224,169.43,169.37,25.0991224]
[1739952068292,32.60677093,169.42,169.36,19.1949224]
[1739952069387,19.1949224,169.42,169.36,19.1949224]
[1739952069585,101.9579224,169.43,169.37,5.9042]
[1739952070394,19.2579224,169.43,169.37,5.9042]
[1739952070690,19.1949224,169.41,169.36,80.9]
[1739952071056,19.1949224,169.37,169.31,100.0949224]
[1739952071258,19.1949224,169.35,169.3,6.4699]
[1739952071578,19.1949224,169.34,169.3,6.4699]
[1739952071773,19.1949224,169.35,169.3,6.4699]
[1739952072882,19.1949224,169.33,169.26,12.4233]
[1739952073084,19.1949224,169.31,169.26,6.5156]
[1739952073289,19.1949224,169.3,169.25,86.8083]
[1739952073491,19.1949224,169.3,169.24,19.2249224]
[1739952073791,19.1949224,169.3,169.24,25.1335224]
[1739952074097,19.1949224,169.31,169.25,19.1949224]
[1739952074591,19.1949224,169.3,169.24,19.2249224]
[1739952074886,96.11184853,169.31,169.24,0.03]
[1739952074887,19.1949224,169.28,169.24,0.03]
[1739952075068,19.1949224,169.27,169.24,0.03]
[1739952077272,19.1949224,169.25,169.24,0.03]
[1739952077477,32.60677093,169.25,169.24,0.03]
[1739952077991,19.1949224,169.26,169.24,0.03]
[1739952078467,82.7,169.27,169.24,0.03]
[1739952078864,82.7,169.32,169.24,19.2249224]
[1739952079080,19.1949224,169.3,169.24,19.2249224]
[1739952079592,96.11184853,169.31,169.24,0.03]
[1739952079593,19.1949224,169.29,169.24,0.03]
[1739952080187,19.1949224,169.28,169.24,0.03]
[1739952080389,19.1949224,169.27,169.24,0.03]
[1739952080567,32.60677093,169.28,169.24,0.03]
[1739952081479,19.1949224,169.29,169.24,0.03]
[1739952081778,101.8949224,169.31,169.25,19.1949224]
[1739952081983,101.8949224,169.33,169.27,19.1949224]
[1739952082181,19.1949224,169.33,169.27,19.1949224]
[1739952082496,19.1949224,169.34,169.28,19.1949224]
[1739952082880,19.1949224,169.33,169.27,19.1949224]
[1739952083572,19.1949224,169.33,169.28,5.9073]
[1739952083971,19.1949224,169.37,169.31,19.1949224]
[1739952084168,82.7,169.38,169.33,19.1949224]
[1739952084670,101.8949224,169.38,169.32,19.1949224]
[1739952085597,19.1949224,169.36,169.3,29.6015224]
[1739952085765,19.1949224,169.35,169.3,10.4066]
[1739952086264,19.1949224,169.36,169.3,10.4066]
[1739952086895,19.1949224,169.37,169.31,19.1949224]
[1739952087496,19.1949224,169.37,169.3,29.6015224]
[1739952087700,19.1949224,169.36,169.3,23.6949224]
[1739952087900,0.063,169.33,169.3,29.6014224]
[1739952088296,0.063,169.33,169.3,4.5]
[1739952088730,0.063,169.33,169.3,29.6014224]
[1739952088888,0.063,169.33,169.32,19.1949224]
[1739952089397,16.3618,169.43,169.33,1.5782]
[1739952089398,19.1949224,169.41,169.33,1.5782]
[1739952089607,19.1949224,169.42,169.36,19.1949224]
[1739952090119,19.2579224,169.43,169.37,25.5856224]
[1739952090299,0.063,169.43,169.39,19.1949224]
[1739952090500,0.063,169.43,169.39,80.9]
[1739952090701,0.063,169.43,169.41,19.1949224]
[1739952090889,0.063,169.43,169.42,19.1949224]
[1739952091085,0.063,169.43,169.42,25.0973224]
[1739952091388,0.0001,169.43,169.42,111.4973183]
[1739952092598,0.0001,169.44,169.43,3.5594959]
[1739952092808,0.0001,169.44,169.43,22.7544183]
[1739952093535,0.0001,169.44,169.43,36.16626683]
[1739952093814,0.063,169.5,169.46,20.0]
[1739952094031,0.063,169.5,169.48,19.1949224]
[1739952094595,0.063,169.5,169.48,25.0950224]
[1739952095410,0.063,169.5,169.49,19.1949224]